fUST/lending_fUST_20241228
["ID","MTS","AMOUNT","RATE_DAILY","PERIOD"]
[346839254,1735316842346,1000.0,0.00017,17]
[346839255,1735316852128,-2477.76360058,0.00014,2]
[346839256,1735316852150,-17705.43951542,0.00014,2]
[346839258,1735316911870,11804.68842614,0.00020153,120]
[346839263,1735317015462,203766.44520879,0.00020153,120]
[346839348,1735317032361,-500.0,0.00010621,2]
[346839350,1735317032371,-500.0,0.00010895,2]
[346839353,1735317032381,-906.69,0.00011155,2]
[346839355,1735317032391,-500.0,0.00011169,2]
[346839357,1735317032400,-906.69,0.00011429,2]
[346839359,1735317032409,-500.0,0.00011443,2]
[346839361,1735317032418,-906.69,0.00011703,2]
[346839363,1735317032427,-500.0,0.00011717,2]
[346839365,1735317032437,-906.69,0.00011977,2]
[346839367,1735317032446,-500.0,0.00011991,2]
[346839369,1735317032455,-906.69,0.00012251,2]
[346839371,1735317032464,-500.0,0.00012265,2]
[346839373,1735317032473,-220.3,0.000124,2]
[346839375,1735317032482,-835.03680086,0.000125,2]
[346839377,1735317032491,-906.69,0.00012525,2]
[346839379,1735317032502,-500.0,0.00012539,2]
[346839381,1735317032512,-1039.04963986,0.00012633,2]
[346839383,1735317032522,-906.69,0.00012799,2]
[346839385,1735317032531,-500.0,0.00012813,2]
[346839387,1735317032541,-906.69,0.00013073,2]
[346839389,1735317032550,-500.0,0.00013087,2]
[346839391,1735317032559,-906.69,0.00013347,2]
[346839393,1735317032568,-500.0,0.00013361,2]
[346839395,1735317032577,-346.47370452,0.00013621,2]
[346839397,1735317032588,-560.21629548,0.00013621,2]
[346839399,1735317032598,-439.67170452,0.00013635,2]
[346839500,1735317038029,-500.0,0.00010334,2]
[346839501,1735317038037,-500.0,0.00010608,2]
[346839502,1735317038045,-500.0,0.00010882,2]
[346839503,1735317038054,-381.97929486,0.00011156,2]
[346839504,1735317038062,-466.63908839,0.00011345,2]
[346839505,1735317038070,-60.32829548,0.00013635,2]
[346839506,1735317038080,-906.69,0.00013895,2]
[346839507,1735317038089,-319.78478342,0.000139,2]
[346839508,1735317038099,-326.76379599,0.000139,2]
[346839509,1735317038108,-500.0,0.00013909,2]
[346839510,1735317038118,-400.0,0.00013973,2]
[346839511,1735317038129,-152.0,0.00013986,2]
[346839512,1735317038139,-1238.88180028,0.00014,2]
[346839513,1735317038148,-40397.19785093,0.00014,2]
[346839514,1735317038158,-146213.44419882,0.00014,2]
[346839515,1735317038170,-285.43980486,0.00014,2]
[346839516,1735317038181,-56393.39235738,0.00014,2]
[346839559,1735317040065,-13313.773848,0.00014,2]
[346839562,1735317040077,-7417.82059,0.00014,2]
[346839642,1735317043221,-1310.334311,0.00014,2]
[346839643,1735317043234,-705400.28691411,0.00014,2]
[346839644,1735317043243,-1307.35982438,0.00014,2]
[346839645,1735317043253,-151.0,0.00014,2]
[346839646,1735317043264,-151.0,0.00014,2]
[346839647,1735317043273,-151.0,0.00014,2]
[346839648,1735317043282,-455.6576143,0.00014,2]
[346839649,1735317043291,-1864.41282024,0.00014,2]
[346839650,1735317043300,-269.42652733,0.00014114,2]
[346839651,1735317043310,-906.69,0.00014169,2]
[346839652,1735317043319,-500.0,0.00014183,2]
[346839653,1735317043327,-306.0,0.00014329,2]
[346839654,1735317043337,-906.69,0.00014443,2]
[346839655,1735317043346,-244.34452991,0.00014456,2]
[346839656,1735317043355,-7857.0719576,0.00014584,2]
[346839657,1735317043364,-5000.0,0.00014584,2]
[346839658,1735317043373,-5000.0,0.00014584,2]
[346839659,1735317043382,-5000.0,0.00014584,2]
[346839660,1735317043392,-5000.0,0.00014584,2]
[346839661,1735317043401,-1143.25929191,0.00014669,2]
[346839662,1735317043413,-906.69,0.00014717,2]
[346839663,1735317043422,-326.76379598,0.00014779,2]
[346839664,1735317043431,-394.0,0.00014878,2]
[346839665,1735317043440,-160.0,0.00014941,3]
[346839666,1735317043450,-19451.47836055,0.00014985,2]
[346839667,1735317043459,-906.69,0.00014991,2]
[346839668,1735317043468,-19451.47836055,0.00014995,2]
[346839669,1735317043477,-19451.47836055,0.00014995,2]
[346839670,1735317043486,-5000.0,0.00015,3]
[346839671,1735317043495,-150.12,0.00015132,2]
[346839672,1735317043505,-150.12,0.00015132,2]
[346839673,1735317043515,-150.12,0.00015132,2]
[346839674,1735317043524,-906.69,0.00015265,2]
[346839675,1735317043533,-150.12,0.00015406,2]
[346839676,1735317043542,-150.12,0.00015406,2]
[346839677,1735317043551,-150.12,0.00015406,2]
[346839678,1735317043560,-150.12,0.00015406,2]
[346839679,1735317043569,-150.12,0.00015406,2]
[346839680,1735317043578,-150.12,0.00015406,2]
[346839681,1735317043588,-150.12,0.00015406,2]
[346839682,1735317043597,-500.0,0.00015406,2]
[346839683,1735317043606,-500.0,0.00015406,2]
[346839684,1735317043615,-150.12,0.00015406,2]
[346839685,1735317043625,-906.69,0.00015539,2]
[346839686,1735317043634,-326.76379598,0.00015658,2]
[346839687,1735317043644,-150.12,0.0001568,2]
[346839688,1735317043654,-202.67543627,0.0001568,2]
[346839689,1735317043664,-155.88300801,0.0001568,2]
[346839690,1735317043674,-150.12,0.0001568,2]
[346839691,1735317043684,-150.12,0.0001568,2]
[346839692,1735317043694,-150.12,0.0001568,2]
[346839693,1735317043704,-150.12,0.0001568,2]
[346839694,1735317043714,-500.0,0.0001568,2]
[346839695,1735317043723,-753.50550242,0.0001568,2]
[346839696,1735317043733,-906.69,0.00015813,2]
[346839697,1735317043743,-150.12,0.00015954,2]
[346839698,1735317043753,-150.12,0.00015954,2]
[346839699,1735317043764,-150.12,0.00015954,2]
[346839700,1735317043773,-150.12,0.00015954,2]
[346839701,1735317043782,-250.52951667,0.00015954,2]
[346839702,1735317043793,-500.0,0.00015954,2]
[346839703,1735317043802,-5006.65900665,0.00015966,2]
[346839704,1735317043811,-150.0,0.00016,2]
[346839705,1735317043820,-10000.0,0.00016,2]
[346839706,1735317043829,-10000.0,0.00016,2]
[346839707,1735317043839,-10000.0,0.00016,2]
[346839708,1735317043848,-10000.0,0.00016,2]
[346839709,1735317043857,-10000.0,0.00016,2]
[346839710,1735317043866,-10000.0,0.00016,2]
[346839711,1735317043876,-160.0,0.00016011,4]
[346839712,1735317043887,-160.67045214,0.00016011,5]
[346839713,1735317043896,-906.69,0.00016087,2]
[346839714,1735317043905,-215.2749613,0.00016228,2]
[346839715,1735317043915,-150.12,0.00016228,2]
[346839716,1735317043924,-226.75874368,0.00016228,2]
[346839717,1735317043934,-150.12,0.00016228,2]
[346839718,1735317043944,-500.0,0.00016228,2]
[346839719,1735317043953,-500.0,0.00016344,2]
[346839720,1735317043963,-906.69,0.00016361,2]
[346839721,1735317043972,-2294.66538,0.000164,2]
[346839722,1735317043981,-200.0,0.00016438,2]
[346839723,1735317043991,-200.0,0.00016438,2]
[346839724,1735317044000,-307.11421376,0.00016438,2]
[346839725,1735317044009,-500.0,0.00016438,2]
[346839726,1735317044018,-500.0,0.00016438,2]
[346839727,1735317044027,-500.0,0.00016438,2]
[346839728,1735317044037,-500.0,0.00016438,2]
[346839729,1735317044046,-500.0,0.00016438,2]
[346839730,1735317044055,-500.0,0.00016438,2]
[346839731,1735317044065,-277.98255061,0.00016438,2]
[346839732,1735317044074,-510.09,0.00016438,2]
[346839733,1735317044084,-289.0,0.00016438,4]
[346839734,1735317044093,-1213.58,0.00016438,2]
[346839735,1735317044103,-1213.58,0.00016438,2]
[346839736,1735317044112,-1213.58,0.00016438,2]
[346839737,1735317044121,-1213.58,0.00016438,2]
[346839738,1735317044130,-1213.58,0.00016438,2]
[346839739,1735317044140,-1213.58,0.00016438,2]
[346839740,1735317044149,-1213.58,0.00016438,2]
[346839741,1735317044159,-1213.58,0.00016438,2]
[346839742,1735317044169,-1213.58,0.00016438,2]
[346839743,1735317044178,-1213.58,0.00016438,2]
[346839744,1735317044187,-1213.58,0.00016438,2]
[346839745,1735317044197,-1213.58,0.00016438,2]
[346839746,1735317044206,-1213.58,0.00016438,2]
[346839747,1735317044215,-1213.58,0.00016438,2]
[346839748,1735317044224,-1213.58,0.00016438,2]
[346839749,1735317044233,-1213.58,0.00016438,2]
[346839750,1735317044243,-1213.58,0.00016438,2]
[346839751,1735317044252,-1213.58,0.00016438,2]
[346839752,1735317044264,-1213.58,0.00016438,2]
[346839753,1735317044273,-1213.58,0.00016438,2]
[346839754,1735317044282,-500.0,0.00016438,2]
[346839755,1735317044292,-500.0,0.00016438,2]
[346839756,1735317044302,-490.1943793,0.00016438,2]
[346839757,1735317044311,-165.57715325,0.00016438,2]
[346839758,1735317044321,-500.0,0.00016438,2]
[346839759,1735317044330,-500.0,0.00016438,2]
[346839760,1735317044340,-2458.95719999,0.0001644,2]
[346839761,1735317044350,-2458.95719999,0.0001644,2]
[346839762,1735317044359,-2458.95719999,0.0001644,2]
[346839763,1735317044369,-2458.95719999,0.0001644,2]
[346839764,1735317044378,-2458.95719999,0.0001644,2]
[346839765,1735317044389,-2458.95719999,0.0001644,2]
[346839766,1735317044398,-2458.95719999,0.0001644,2]
[346839767,1735317044407,-2458.95719999,0.0001644,2]
[346839768,1735317044417,-2458.95719999,0.0001644,2]
[346839769,1735317044426,-2458.95719999,0.0001644,2]
[346839770,1735317044435,-2458.95719999,0.0001644,2]
[346839771,1735317044445,-2458.95719999,0.0001644,2]
[346839772,1735317044454,-2458.95719999,0.0001644,2]
[346839773,1735317044463,-2458.95719999,0.0001644,2]
[346839774,1735317044474,-2458.95719999,0.0001644,2]
[346839775,1735317044483,-2458.95719999,0.0001644,2]
[346839776,1735317044492,-2458.95719999,0.0001644,2]
[346839777,1735317044501,-2458.95719999,0.0001644,2]
[346839778,1735317044512,-2458.95719999,0.0001644,2]
[346839779,1735317044522,-2458.95,0.0001644,2]
[346839780,1735317044531,-1846.03311359,0.0001644,2]
[346839781,1735317044540,-1846.03311359,0.0001644,2]
[346839782,1735317044550,-1846.03311359,0.0001644,2]
[346839783,1735317044559,-1846.03311359,0.0001644,2]
[346839784,1735317044568,-1846.03311359,0.0001644,2]
[346839785,1735317044579,-1846.03311359,0.0001644,2]
[346839786,1735317044589,-1846.03311359,0.0001644,2]
[346839787,1735317044598,-1846.03311359,0.0001644,2]
[346839788,1735317044607,-1846.03311359,0.0001644,2]
[346839789,1735317044616,-1846.03311359,0.0001644,2]
[346839790,1735317044626,-1846.03311359,0.0001644,2]
[346839791,1735317044635,-1846.03311359,0.0001644,2]
[346839792,1735317044645,-1846.03311359,0.0001644,2]
[346839793,1735317044653,-1846.03311359,0.0001644,2]
[346839794,1735317044663,-1846.03311359,0.0001644,2]
[346839795,1735317044672,-1846.03311359,0.0001644,2]
[346839796,1735317044681,-1846.03311359,0.0001644,2]
[346839797,1735317044691,-1846.03311359,0.0001644,2]
[346839798,1735317044699,-1846.03311359,0.0001644,2]
[346839799,1735317044709,-1846.03,0.0001644,2]
[346839800,1735317044718,-192.73963618,0.0001644,2]
[346839801,1735317044727,-192.73963618,0.0001644,2]
[346839802,1735317044737,-192.73,0.0001644,2]
[346839803,1735317044747,-269.67947816,0.00016473,2]
[346839804,1735317044756,-500.0,0.00016473,2]
[346839805,1735317044767,-514.73961456,0.00016473,2]
[346839806,1735317044777,-500.0,0.00016473,2]
[346839807,1735317044787,-500.0,0.00016473,2]
[346839808,1735317044796,-500.0,0.00016473,2]
[346839809,1735317044805,-10913.37,0.000165,2]
[346839810,1735317044815,-29286.16,0.000165,2]
[346839811,1735317044824,-31444.62,0.000165,2]
[346839812,1735317044834,-150.12,0.00016502,2]
[346839813,1735317044844,-151.76543675,0.00016502,2]
[346839814,1735317044853,-500.0,0.00016502,2]
[346839815,1735317044863,-326.76379598,0.00016537,2]
[346839816,1735317044872,-1213.58,0.00016635,2]
[346839817,1735317044886,-906.69,0.00016635,2]
[346839818,1735317044900,-289.0,0.00016712,4]
[346839819,1735317044909,-228.85061633,0.00016776,2]
[346839820,1735317044919,-500.0,0.00016776,2]
[346839821,1735317044928,-2294.66537995,0.00016806,2]
[346839822,1735317044938,-1213.58,0.00016909,2]
[346839823,1735317044948,-906.69,0.00016909,2]
[346839824,1735317044957,-3688.43579999,0.00016921,2]
[346839825,1735317044968,-3688.43579999,0.00016921,2]
[346839826,1735317044979,-13.75014136,0.00016921,2]
[346839933,1735317046915,-152.0,0.00014042,2]
[346839935,1735317046925,-500.0,0.00016438,2]
[346839938,1735317046935,-500.0,0.00016438,2]
[346839940,1735317046944,-500.0,0.00016438,2]
[346839941,1735317046953,-500.0,0.00016438,2]
[346839944,1735317046963,-500.0,0.00016438,2]
[346839946,1735317046973,-500.0,0.00016438,2]
[346839948,1735317046982,-500.0,0.00016438,2]
[346839950,1735317046992,-500.0,0.00016438,2]
[346839952,1735317047001,-443.31940061,0.00016438,2]
[346839954,1735317047012,-3674.68565863,0.00016921,2]
[346839956,1735317047021,-3688.43579999,0.00016921,2]
[346839958,1735317047030,-3688.43579999,0.00016921,2]
[346839960,1735317047040,-3688.43579999,0.00016921,2]
[346839962,1735317047050,-3688.43579999,0.00016921,2]
[346839964,1735317047060,-3688.43579999,0.00016921,2]
[346839966,1735317047070,-3688.43579999,0.00016921,2]
[346839968,1735317047081,-3688.43579999,0.00016921,2]
[346839970,1735317047090,-3688.43579999,0.00016921,2]
[346839972,1735317047100,-3688.43579999,0.00016921,2]
[346839974,1735317047109,-3688.43579999,0.00016921,2]
[346839976,1735317047118,-3688.43579999,0.00016921,2]
[346839978,1735317047127,-3659.00815234,0.00016921,2]
[346840025,1735317047559,-500.0,0.00016438,2]
[346840027,1735317047568,-500.0,0.00016438,2]
[346840029,1735317047577,-29.42764765,0.00016921,2]
[346840031,1735317047586,-1213.15047635,0.00016921,2]
[346840525,1735317097463,627.06,0.000169,7]
[346840527,1735317283010,438.94,0.000169,7]
[346840528,1735317468331,307.26,0.000169,7]
[346840529,1735317653787,215.08,0.00017,7]
[346840530,1735317930156,-274.63537346,0.0001,2]
[346840531,1735317930177,-313.13781388,0.00010069,2]
[346840532,1735317930199,-416.70227794,0.00011164,2]
[346840533,1735317930221,-1201.157,0.00012762,2]
[346840534,1735317930241,-534.0,0.00012762,2]
[346840535,1735317930261,-2355.0,0.00012762,2]
[346840536,1735317930282,-394.0,0.00012762,2]
[346840537,1735317930302,-150.0,0.000131,2]
[346840538,1735317930322,-17468.4252654,0.00013464,2]
[346840539,1735317930346,-161.3218,0.00013599,2]
[346840540,1735317930367,-161.3218,0.00013621,2]
[346840541,1735317930387,-161.3218,0.00013644,2]
[346840542,1735317930408,-161.3218,0.00013667,2]
[346840543,1735317930428,-675.541981,0.00013699,2]
[346840544,1735317930448,-400.0,0.00013973,2]
[346840545,1735317930468,-500.0,0.00013999,2]
[346840546,1735317930488,-500.0,0.00013999,2]
[346840547,1735317930509,-358.5426572,0.00013999,2]
[346840548,1735317930530,-400.0,0.00013999,2]
[346840549,1735317930549,-500.0,0.00014273,2]
[346840550,1735317930583,-500.0,0.00014273,2]
[346840551,1735317930603,-9740.74230276,0.00014985,2]
[346840552,1735317930624,-9740.74230276,0.00014988,2]
[346840553,1735317930645,-9740.74230276,0.00014996,2]
[346840554,1735317930665,-164.765337,0.00015,3]
[346840555,1735317930685,-394.0,0.00015762,2]
[346840556,1735317930705,-215.28525681,0.00015823,2]
[346840557,1735317930726,-152.0,0.00015923,2]
[346840558,1735317930747,-2085.98818613,0.0001597,2]
[346840559,1735317930769,-355.835,0.00015999,2]
[346840560,1735317930792,-500.0,0.00015999,2]
[346840561,1735317930815,-87329.5948959,0.00016,5]
[346840562,1735317946093,-165.03505991,0.0001597,2]
[346840563,1735317946115,-239234.73403609,0.00016,5]
[346840565,1735318027132,-394.0,0.00012762,2]
[346840566,1735318027161,-150.0,0.000134,2]
[346840567,1735318027182,-394.0,0.00015762,2]
[346840568,1735318027205,-152.0,0.00015999,2]
[346840569,1735318027227,-1080432.08106801,0.00016,5]
[346840570,1735318027249,-1200.0,0.00016,2]
[346840571,1735318027270,-652.543,0.0001607,2]
[346840572,1735318027291,-16947.330209,0.00016212,2]
[346840573,1735318027312,-193.0,0.00016359,2]
[346840574,1735318027333,-2085.98818605,0.00016419,2]
[346840575,1735318027354,-215.28525677,0.00016421,2]
[346840576,1735318027379,-500.0,0.00016438,2]
[346840577,1735318027403,-500.0,0.00016438,2]
[346840578,1735318027424,-500.0,0.00016438,2]
[346840579,1735318027444,-500.0,0.00016438,2]
[346840580,1735318027465,-500.0,0.00016438,2]
[346840581,1735318027485,-500.0,0.00016438,2]
[346840582,1735318027506,-544.33194006,0.00016438,2]
[346840583,1735318027527,-500.0,0.00016438,2]
[346840584,1735318027548,-500.0,0.00016438,2]
[346840585,1735318027569,-500.0,0.00016438,2]
[346840586,1735318027589,-500.0,0.00016438,2]
[346840587,1735318027609,-500.0,0.00016438,2]
[346840588,1735318027630,-240.9,0.00016438,4]
[346840589,1735318027652,-25983.48302311,0.000165,2]
[346840590,1735318028095,-5461.13697689,0.000165,2]
[346840591,1735318028115,-8730.7,0.000165,2]
[346840592,1735318028134,-23428.93,0.000165,2]
[346840593,1735318028159,-8166.42427866,0.00016572,2]
[346840594,1735318028180,-240.9,0.00016712,4]
[346840595,1735318028200,-245.0,0.00016727,2]
[346840596,1735318028220,-2085.98818605,0.00016867,2]
[346840597,1735318028240,-158.0038014,0.000169,2]
[346840598,1735318028260,-295.69,0.00016919,2]
[346840599,1735318028281,-500.0,0.00016919,2]
[346840600,1735318028302,-500.0,0.0001692,2]
[346840601,1735318028324,-2475.28532364,0.00016921,2]
[346840602,1735318028345,-3688.43579999,0.00016921,2]
[346840603,1735318028366,-3688.43579999,0.00016921,2]
[346840604,1735318028387,-3688.43579999,0.00016921,2]
[346840605,1735318028409,-3688.43,0.00016921,2]
[346840606,1735318028429,-2769.04967039,0.00016921,2]
[346840607,1735318028451,-2769.04967039,0.00016921,2]
[346840608,1735318028472,-2769.04967039,0.00016921,2]
[346840609,1735318028492,-2769.04967039,0.00016921,2]
[346840610,1735318028514,-2769.04967039,0.00016921,2]
[346840611,1735318028536,-2769.04967039,0.00016921,2]
[346840612,1735318028558,-2769.04967039,0.00016921,2]
[346840613,1735318028577,-2769.04967039,0.00016921,2]
[346840614,1735318028597,-2769.04967039,0.00016921,2]
[346840615,1735318028618,-2769.04967039,0.00016921,2]
[346840616,1735318028639,-2769.04967039,0.00016921,2]
[346840617,1735318028660,-2769.04967039,0.00016921,2]
[346840618,1735318028680,-2769.04967039,0.00016921,2]
[346840619,1735318028700,-2769.04967039,0.00016921,2]
[346840620,1735318028720,-2769.04967039,0.00016921,2]
[346840621,1735318028740,-2769.04967039,0.00016921,2]
[346840622,1735318028760,-2769.04967039,0.00016921,2]
[346840623,1735318028780,-2769.04967039,0.00016921,2]
[346840624,1735318028801,-2769.04967039,0.00016921,2]
[346840625,1735318028821,-2769.04,0.00016921,2]
[346840626,1735318028841,-173.46567257,0.00016921,2]
[346840627,1735318028861,-173.46567257,0.00016921,2]
[346840628,1735318028880,-173.46567257,0.00016921,2]
[346840629,1735318028902,-173.46567257,0.00016921,2]
[346840630,1735318028922,-173.46,0.00016921,2]
[346840631,1735318028941,-240.9,0.00016986,4]
[346840632,1735318028961,-4108.56891934,0.00017,2]
[346840633,1735318029089,-33033.88291104,0.00017,2]
[346840634,1735318029108,-14396.28116244,0.00017,2]
[346840635,1735318029128,-600.0,0.00017,2]
[346840636,1735318029152,-3820.80866726,0.00017,2]
[346840637,1735318029173,-500.0,0.00017,2]
[346840638,1735318029195,-2000.0,0.00017,2]
[346840639,1735318029215,-1917.799999,0.00017,2]
[346840640,1735318029239,-500.0,0.00017,2]
[346840641,1735318029261,-215.28525677,0.00017018,2]
[346840642,1735318029281,-151.05477497,0.00017069,2]
[346840643,1735318029302,-500.0,0.00017193,2]
[346840644,1735318029326,-500.0,0.00017194,2]
[346840645,1735318029346,-2500.0,0.0001726,2]
[346840646,1735318029367,-240.9,0.0001726,5]
[346840647,1735318029388,-2130.13333964,0.00017263,2]
[346840648,1735318029411,-500.0,0.00017274,2]
[346840649,1735318029432,-201.88,0.000173,7]
[346840650,1735318029454,-2085.98818605,0.00017316,2]
[346840651,1735318029475,-500.0,0.00017462,2]
[346840652,1735318029496,-500.0,0.00017467,2]
[346840653,1735318029518,-500.0,0.00017468,2]
[346840654,1735318029538,-240.9,0.00017534,5]
[346840655,1735318029558,-500.0,0.00017548,2]
[346840656,1735318029578,-215.28525677,0.00017616,2]
[346840657,1735318029598,-156.95,0.00017649,2]
[346840658,1735318029618,-155.0,0.00017649,2]
[346840659,1735318029639,-155.0,0.00017649,2]
[346840660,1735318029663,-155.0,0.00017649,2]
[346840661,1735318029683,-2000.0,0.000177,2]
[346840662,1735318029703,-500.0,0.00017741,2]
[346840663,1735318029726,-500.0,0.00017742,2]
[346840664,1735318029748,-2085.98818605,0.00017764,2]
[346840665,1735318029769,-2000.0,0.000178,2]
[346840666,1735318029789,-500.0,0.00017808,4]
[346840667,1735318029809,-240.9,0.00017808,5]
[346840668,1735318029831,-10310.54764679,0.0001782,2]
[346840669,1735318029852,-500.0,0.00017822,2]
[346840670,1735318029872,-14483.70689083,0.00018,2]
[346840671,1735318029892,-16572.07136812,0.00018,2]
[346840672,1735318029914,-16572.07136812,0.00018,2]
[346840673,1735318029934,-16572.07136812,0.00018,2]
[346840674,1735318029954,-4599.02404827,0.00018,2]
[346840675,1735318029975,-4599.02404824,0.00018,2]
[346840676,1735318029995,-4599.02404824,0.00018,2]
[346840677,1735318030015,-4599.02404824,0.00018,2]
[346840678,1735318030035,-5000.0,0.00018,2]
[346840679,1735318030056,-29430.1809861,0.00018,2]
[346840680,1735318030076,-2000.0,0.00018,2]
[346840681,1735318030096,-8421.0,0.00018,2]
[346840682,1735318030118,-1000.0,0.00018,18]
[346840683,1735318030138,-8730.7,0.00018,2]
[346840684,1735318030164,-3146.79197208,0.00018,2]
[346840685,1735318030359,-20282.13802792,0.00018,2]
[346840686,1735318030382,-237.33,0.00018,2]
[346840687,1735318030403,-237.33,0.00018,2]
[346840688,1735318030424,-237.33,0.00018,2]
[346840689,1735318030446,-427.29185594,0.00018015,2]
[346840690,1735318030466,-156.0,0.00018016,2]
[346840691,1735318030489,-500.0,0.00018016,2]
[346840692,1735318030509,-240.9,0.00018082,6]
[346840693,1735318030530,-500.0,0.00018096,2]
[346840694,1735318030550,-31444.62,0.000182,2]
[346840695,1735318030574,-2085.98818605,0.00018213,2]
[346840696,1735318030595,-215.28525677,0.00018214,2]
[346840697,1735318030618,-25518.50975709,0.00018246,2]
[346840698,1735318030638,-698.49337799,0.00018246,2]
[346840699,1735318030659,-1999.0,0.00018246,5]
[346840700,1735318030679,-1999.0,0.00018246,5]
[346840701,1735318030699,-1999.0,0.00018246,5]
[346840702,1735318030719,-1999.0,0.00018246,5]
[346840703,1735318030740,-1999.0,0.00018246,5]
[346840704,1735318030761,-1999.0,0.00018246,5]
[346840705,1735318030782,-1999.0,0.00018246,5]
[346840706,1735318030804,-1999.0,0.00018246,5]
[346840707,1735318030825,-1999.0,0.00018246,5]
[346840708,1735318030846,-1999.0,0.00018246,5]
[346840709,1735318030868,-1999.0,0.00018246,5]
[346840710,1735318030888,-1999.0,0.00018246,5]
[346840711,1735318030910,-1999.0,0.00018246,5]
[346840712,1735318030931,-1999.0,0.00018246,5]
[346840713,1735318030952,-238.01129206,0.00018246,5]
[346840714,1735318030974,-368.47097987,0.0001829,2]
[346840715,1735318030995,-240.9,0.00018356,6]
[346840716,1735318031015,-156.0,0.00018362,2]
[346840717,1735318031036,-500.0,0.0001837,2]
[346840718,1735318031056,-180.43152175,0.000185,2]
[346840719,1735318031076,-500.0,0.00018509,14]
[346840720,1735318031097,-500.0,0.00018518,14]
[346840721,1735318031117,-500.0,0.0001863,2]
[346840722,1735318031137,-500.0,0.0001863,2]
[346840723,1735318031162,-500.0,0.0001863,2]
[346840724,1735318031183,-626.48765959,0.0001863,2]
[346840725,1735318031203,-240.9,0.0001863,6]
[346840726,1735318031226,-500.0,0.00018644,2]
[346840727,1735318031248,-2085.98818605,0.00018661,2]
[346840728,1735318031268,-164.0,0.000187,2]
[346840729,1735318031287,-2000.0,0.000187,2]
[346840730,1735318031308,-394.0,0.00018762,2]
[346840731,1735318031327,-403.62866705,0.000188,2]
[346840732,1735318031347,-2000.0,0.000188,2]
[346840733,1735318031367,-215.28525677,0.00018812,2]
[346840734,1735318031387,-157.81215229,0.00018898,2]
[346840735,1735318031409,-500.0,0.000189,5]
[346840736,1735318031431,-19078.2465004,0.000189,2]
[346840737,1735318031452,-666.0,0.000189,2]
[346840738,1735318031472,-10375.97518359,0.000189,2]
[346840739,1735318031492,-151.0,0.00018904,2]
[346840740,1735318031511,-151.0,0.00018904,2]
[346840741,1735318031531,-151.0,0.00018904,2]
[346840742,1735318031553,-151.0,0.00018904,2]
[346840743,1735318031572,-151.0,0.00018904,2]
[346840744,1735318031593,-151.0,0.00018904,2]
[346840745,1735318031613,-151.0,0.00018904,2]
[346840746,1735318031634,-151.0,0.00018904,2]
[346840747,1735318031655,-151.0,0.00018904,2]
[346840748,1735318031675,-240.9,0.00018904,6]
[346840749,1735318031695,-151.0,0.00018904,6]
[346840750,1735318031715,-151.0,0.00018904,2]
[346840751,1735318031735,-151.0,0.00018904,2]
[346840752,1735318031755,-151.0,0.00018904,2]
[346840753,1735318031776,-151.0,0.00018904,2]
[346840754,1735318031796,-5000.0,0.00018904,7]
[346840755,1735318031818,-5000.0,0.00018904,7]
[346840756,1735318031838,-5000.0,0.00018904,7]
[346840757,1735318031859,-5000.0,0.00018904,7]
[346840758,1735318031879,-5000.0,0.00018904,7]
[346840759,1735318031901,-5000.0,0.00018904,7]
[346840760,1735318031923,-5000.0,0.00018904,7]
[346840761,1735318031944,-5000.0,0.00018904,7]
[346840762,1735318031964,-5000.0,0.00018904,7]
[346840763,1735318031983,-5000.0,0.00018904,7]
[346840764,1735318032003,-5000.0,0.00018904,7]